fUSD/lending_fUSD_20240804
["ID","MTS","AMOUNT","RATE_DAILY","PERIOD"]
[334169271,1722805929499,-1412.6,0.00023506,9]
[334169272,1722805929509,-500.0,0.00023506,9]
[334169273,1722805929519,-500.0,0.00023506,9]
[334169274,1722805929528,-531.61,0.00023506,9]
[334169275,1722805929537,-1229.02,0.00023506,9]
[334169276,1722805929546,-500.0,0.00023506,9]
[334169277,1722805929555,-6553.66,0.00023506,9]
[334169278,1722805929564,-500.0,0.00023506,9]
[334169279,1722805929573,-500.0,0.00023506,9]
[334169280,1722805929585,-500.0,0.00023506,9]
[334169281,1722805929595,-691.94,0.00023506,9]
[334169282,1722805929605,-500.0,0.00023506,9]
[334169283,1722805929615,-2309.07,0.00023506,9]
[334169284,1722805929625,-500.0,0.00023506,9]
[334169285,1722805929636,-500.0,0.00023506,9]
[334169286,1722805929646,-500.0,0.00023506,9]
[334169287,1722805929655,-500.0,0.00023506,9]
[334169288,1722805929668,-500.0,0.00023506,9]
[334169289,1722805929677,-500.0,0.00023506,9]
[334169290,1722805929687,-7369.62,0.00023506,9]
[334169291,1722805929697,-1541.38,0.00023506,9]
[334169292,1722805929706,-1634.36,0.00023506,9]
[334169293,1722805929717,-500.0,0.00023506,9]
[334169294,1722805929733,-1725.22,0.00023506,9]
[334169295,1722805929748,-4003.4,0.00023506,9]
[334169296,1722805929763,-500.0,0.00023506,9]
[334169297,1722805929777,-29096.91,0.00023506,9]
[334169298,1722805929790,-1389.65,0.00023506,9]
[334169299,1722805929805,-500.0,0.00023506,9]
[334169300,1722805929820,-500.0,0.00023506,9]
[334169301,1722805929835,-500.0,0.00023506,9]
[334169302,1722805929848,-1445.15,0.00023506,9]
[334169303,1722805929861,-2166.73,0.00023506,9]
[334169304,1722805929875,-1008.24,0.00023506,9]
[334169305,1722805929890,-875.6,0.00023506,9]
[334169306,1722805929903,-500.0,0.00023506,9]
[334169307,1722805929916,-2110.33,0.00023506,9]
[334169308,1722805929928,-1837.17,0.00023506,9]
[334169309,1722805929940,-500.0,0.00023506,9]
[334169310,1722805929954,-500.0,0.00023506,9]
[334169311,1722805929968,-500.0,0.00023506,9]
[334169312,1722805929982,-500.0,0.00023506,9]
[334169313,1722805929997,-869.18,0.00023506,9]
[334169314,1722805930012,-3297.96,0.00023506,9]
[334169315,1722805930023,-500.0,0.00023506,9]
[334169316,1722805930035,-500.0,0.00023506,9]
[334169317,1722805930048,-500.0,0.00023506,9]
[334169318,1722805930062,-500.0,0.00023506,9]
[334169319,1722805930075,-500.0,0.00023506,9]
[334169320,1722805930089,-500.0,0.00023506,9]
[334169321,1722805930100,-1974.83,0.00023506,9]
[334169322,1722805930117,-1490.37,0.00023506,9]
[334169323,1722805930129,-500.0,0.00023506,9]
[334169324,1722805930141,-500.0,0.00023506,9]
[334169325,1722805930157,-500.0,0.00023506,9]
[334169326,1722805930170,-1163.87,0.00023506,9]
[334169327,1722805930182,-838.33,0.00023506,9]
[334169328,1722805930195,-529.16,0.00023506,9]
[334169329,1722805930208,-974.84,0.00023506,9]
[334169330,1722805930222,-15920.46,0.00023506,9]
[334169331,1722805930235,-4240.5,0.00023506,9]
[334169332,1722805930249,-5400.18,0.00023506,9]
[334169333,1722805930262,-500.0,0.00023506,9]
[334169334,1722805930275,-590.46,0.00023506,9]
[334169335,1722805930288,-500.0,0.00023506,9]
[334169336,1722805930301,-3908.25,0.00023506,9]
[334169337,1722805930315,-500.0,0.00023506,9]
[334169338,1722805930328,-500.0,0.00023506,9]
[334169339,1722805930341,-500.0,0.00023506,2]
[334169340,1722805930353,-500.0,0.00023506,9]
[334169341,1722805930366,-500.0,0.00023506,9]
[334169342,1722805930379,-529.53,0.00023506,9]
[334169343,1722805930392,-500.0,0.00023506,9]
[334169344,1722805930405,-161.62,0.00023506,9]
[334169345,1722805930418,-639.22456799,0.00023506,9]
[334169346,1722805930430,-500.0,0.00023506,9]
[334169347,1722805930442,-813.32,0.00023506,9]
[334169348,1722805930456,-4692.4,0.00023506,9]
[334169349,1722805930469,-585.12,0.00023506,9]
[334169350,1722805930482,-500.0,0.00023506,9]
[334169351,1722805930496,-500.0,0.00023506,9]
[334169352,1722805930510,-500.0,0.00023506,9]
[334169353,1722805930524,-2368.57,0.00023506,9]
[334169354,1722805930537,-1822.82,0.00023506,9]
[334169355,1722805930551,-1306.56,0.00023506,9]
[334169356,1722805930564,-1782.24,0.00023506,9]
[334169357,1722805930577,-500.0,0.00023506,9]
[334169358,1722805930592,-532.36,0.00023506,9]
[334169359,1722805930605,-500.0,0.00023506,9]
[334169360,1722805930618,-584.45,0.00023506,9]
[334169361,1722805930632,-3279.94,0.00023506,9]
[334169362,1722805930644,-1802.61,0.00023506,9]
[334169363,1722805930658,-1732.98,0.00023506,9]
[334169364,1722805930672,-570.5,0.00023506,9]
[334169365,1722805930685,-1593.38,0.00023506,9]
[334169366,1722805930697,-500.0,0.00023506,9]
[334169367,1722805930709,-500.0,0.00023506,9]
[334169368,1722805930723,-500.0,0.00023506,9]
[334169369,1722805930736,-1389.19,0.00023506,9]
[334169370,1722805930748,-704.27,0.00023506,9]
[334169371,1722805930761,-500.0,0.00023506,9]
[334169372,1722805930774,-1292.52,0.00023506,9]
[334169373,1722805930787,-749.6,0.00023506,9]
[334169374,1722805930800,-500.0,0.00023506,9]
[334169375,1722805930815,-795.55,0.00023506,9]
[334169376,1722805930827,-500.0,0.00023506,9]
[334169377,1722805930840,-2234.5,0.00023506,9]
[334169378,1722805930854,-500.0,0.00023506,9]
[334169379,1722805930868,-1619.53,0.00023506,9]
[334169380,1722805930881,-500.0,0.00023506,9]
[334169381,1722805930894,-1978.79,0.00023506,9]
[334169382,1722805930907,-500.0,0.00023506,9]
[334169383,1722805930920,-500.0,0.00023506,9]
[334169384,1722805930933,-1324.25,0.00023506,9]
[334169385,1722805930946,-500.0,0.00023506,9]
[334169386,1722805930960,-4642.9,0.00023506,9]
[334169387,1722805930974,-500.0,0.00023506,9]
[334169388,1722805930987,-1486.81,0.00023506,9]
[334169389,1722805931000,-1192.94,0.00023506,9]
[334169390,1722805931013,-905.71,0.00023506,9]
[334169391,1722805931026,-748.9,0.00023506,9]
[334169392,1722805931039,-1702.1,0.00023506,9]
[334169393,1722805931051,-551.73,0.00023506,9]
[334169394,1722805931063,-500.0,0.00023506,9]
[334169395,1722805931075,-1520.77,0.00023506,9]
[334169396,1722805931086,-500.0,0.00023506,9]
[334169397,1722805931098,-500.0,0.00023506,9]
[334169398,1722805931110,-500.0,0.00023506,9]
[334169399,1722805931123,-784.78,0.00023506,9]
[334169400,1722805931134,-500.0,0.00023506,9]
[334169401,1722805931146,-500.0,0.00023506,9]
[334169402,1722805931158,-1738.84,0.00023506,9]
[334169403,1722805931169,-500.0,0.00023506,9]
[334169404,1722805931182,-500.0,0.00023506,9]
[334169405,1722805931195,-1249.0,0.00023506,9]
[334169406,1722805931207,-648.05,0.00023506,9]
[334169407,1722805931219,-1912.77,0.00023506,9]
[334169408,1722805931231,-512.44,0.00023506,9]
[334169409,1722805931243,-500.0,0.00023506,9]
[334169410,1722805931254,-2333.13,0.00023506,9]
[334169411,1722805931267,-700.51,0.00023506,9]
[334169412,1722805931279,-500.0,0.00023506,9]
[334169413,1722805931291,-2730.38,0.00023506,9]
[334169414,1722805931302,-1336.78,0.00023506,9]
[334169415,1722805931314,-500.0,0.00023506,9]
[334169416,1722805931325,-914.73,0.00023506,9]
[334169417,1722805931337,-500.0,0.00023506,9]
[334169418,1722805931349,-500.0,0.00023506,9]
[334169419,1722805931360,-500.0,0.00023506,9]
[334169420,1722805931372,-500.0,0.00023506,9]
[334169421,1722805931385,-581.05,0.00023506,9]
[334169422,1722805931397,-2039.74,0.00023506,9]
[334169423,1722805931409,-671.9,0.00023506,9]
[334169424,1722805931421,-1746.98,0.00023506,9]
[334169425,1722805931432,-1826.84,0.00023506,9]
[334169426,1722805931446,-617.4,0.00023506,9]
[334169427,1722805931457,-500.0,0.00023506,9]
[334169428,1722805931471,-1409.8,0.00023506,9]
[334169429,1722805931483,-500.0,0.00023506,9]
[334169430,1722805931495,-6817.41,0.00023506,9]
[334169431,1722805931507,-513.75,0.00023506,9]
[334169432,1722805931520,-1484.97,0.00023506,9]
[334169433,1722805931533,-500.0,0.00023506,9]
[334169434,1722805931545,-2027.34,0.00023506,9]
[334169435,1722805931557,-500.0,0.00023506,9]
[334169436,1722805931569,-500.0,0.00023506,9]
[334169437,1722805931582,-1047.24,0.00023506,9]
[334169438,1722805931597,-1539.01,0.00023506,9]
[334169439,1722805931608,-500.0,0.00023506,9]
[334169440,1722805931621,-500.0,0.00023506,9]
[334169441,1722805931632,-538.57,0.00023506,9]
[334169442,1722805931644,-570.22,0.00023506,9]
[334169443,1722805931658,-1410.21,0.00023506,9]
[334169444,1722805931670,-2974.83,0.00023506,9]
[334169445,1722805931682,-2337.3,0.00023506,9]
[334169446,1722805931694,-981.74,0.00023506,9]
[334169447,1722805931706,-1835.59,0.00023506,9]
[334169448,1722805931718,-500.0,0.00023506,9]
[334169449,1722805931730,-1335.18,0.00023506,9]
[334169450,1722805931742,-500.0,0.00023506,9]
[334169451,1722805931754,-500.0,0.00023506,9]
[334169452,1722805931766,-1361.87,0.00023506,9]
[334169453,1722805931777,-642.87,0.00023506,9]
[334169454,1722805931789,-500.0,0.00023506,9]
[334169455,1722805931803,-500.0,0.00023506,9]
[334169456,1722805931816,-500.0,0.00023506,9]
[334169457,1722805931827,-1731.8,0.00023506,9]
[334169458,1722805931840,-6629.34,0.00023506,9]
[334169459,1722805931852,-500.0,0.00023506,9]
[334169460,1722805931866,-1551.76,0.00023506,9]
[334169461,1722805931878,-589.81,0.00023506,9]
[334169462,1722805931890,-1218.11,0.00023506,9]
[334169463,1722805931902,-500.0,0.00023506,9]
[334169464,1722805931915,-500.0,0.00023506,9]
[334169465,1722805931926,-1011.86,0.00023506,9]
[334169466,1722805931938,-500.0,0.00023506,9]
[334169467,1722805931951,-1603.94,0.00023506,9]
[334169468,1722805931963,-2430.72,0.00023506,9]
[334169469,1722805931977,-780.91,0.00023506,9]
[334169470,1722805931990,-546.2,0.00023506,9]
[334169471,1722805932002,-1366.44,0.00023506,9]
[334169472,1722805932014,-2362.81,0.00023506,9]
[334169473,1722805932026,-500.0,0.00023506,9]
[334169474,1722805932039,-2577.06,0.00023506,9]
[334169475,1722805932051,-840.74,0.00023506,9]
[334169476,1722805932063,-1386.14,0.00023506,9]
[334169477,1722805932075,-1616.46,0.00023506,9]
[334169478,1722805932087,-500.0,0.00023506,9]
[334169479,1722805932099,-500.0,0.00023506,9]
[334169480,1722805932111,-3538.17,0.00023506,9]
[334169481,1722805932123,-1033.75,0.00023506,9]
[334169482,1722805932135,-1548.4,0.00023506,9]
[334169483,1722805932146,-500.0,0.00023506,9]
[334169484,1722805932158,-500.0,0.00023506,9]
[334169485,1722805932170,-1092.49,0.00023506,9]
[334169486,1722805932183,-9086.99,0.00023506,9]
[334169487,1722805932195,-1168.4,0.00023506,9]
[334169488,1722805932207,-1765.93,0.00023506,9]
[334169489,1722805932220,-1340.4,0.00023506,9]
[334169490,1722805932232,-1030.71,0.00023506,9]
[334169491,1722805932243,-1384.98,0.00023506,9]
[334169492,1722805932255,-500.0,0.00023506,9]
[334169493,1722805932268,-500.0,0.00023506,9]
[334169494,1722805932279,-1452.74,0.00023506,9]
[334169495,1722805932291,-500.0,0.00023506,9]
[334169496,1722805932303,-1306.99,0.00023506,9]
[334169497,1722805932315,-500.0,0.00023506,9]
[334169498,1722805932326,-500.0,0.00023506,9]
[334169499,1722805932338,-937.33,0.00023506,9]
[334169500,1722805932349,-1739.37,0.00023506,9]
[334169501,1722805932361,-1656.69,0.00023506,9]
[334169502,1722805932373,-2376.7,0.00023506,9]
[334169503,1722805932385,-2369.95,0.00023506,9]
[334169504,1722805932397,-500.0,0.00023506,9]
[334169505,1722805932409,-2350.99,0.00023506,9]
[334169506,1722805932421,-500.0,0.00023506,9]
[334169507,1722805932433,-1993.53,0.00023506,9]
[334169508,1722805932445,-500.0,0.00023506,9]
[334169509,1722805932457,-500.0,0.00023506,9]
[334169510,1722805932469,-758.04,0.00023506,9]
[334169511,1722805932480,-500.0,0.00023506,9]
[334169512,1722805932492,-411.90408367,0.00023506,9]
[334169513,1722805932504,-1187.35,0.00023506,9]
[334169514,1722805932515,-500.0,0.00023506,9]
[334169515,1722805932527,-500.0,0.00023506,9]
[334169516,1722805932539,-1636.69,0.00023506,9]
[334169517,1722805932551,-1551.59,0.00023506,9]
[334169518,1722805932563,-500.0,0.00023506,9]
[334169519,1722805932575,-777.93,0.00023506,9]
[334169520,1722805932589,-857.36,0.00023506,9]
[334169521,1722805932601,-1247.64,0.00023506,9]
[334169522,1722805932612,-531.47,0.00023506,9]
[334169523,1722805932625,-500.0,0.00023506,9]
[334169524,1722805932636,-500.0,0.00023506,9]
[334169525,1722805932648,-1062.23,0.00023506,9]
[334169526,1722805932660,-196.29609548,0.00023506,9]
[334169527,1722805932674,-1536.84,0.00023506,9]
[334169528,1722805932685,-500.0,0.00023506,9]
[334169529,1722805932696,-5130.9,0.00023506,9]
[334169530,1722805932708,-3352.44,0.00023506,9]
[334169531,1722805932720,-500.0,0.00023506,9]
[334169532,1722805932732,-500.0,0.00023506,9]
[334169533,1722805932743,-1619.45,0.00023506,9]
[334169534,1722805932755,-500.0,0.00023506,9]
[334169535,1722805932767,-500.0,0.00023506,9]
[334169536,1722805932779,-500.0,0.00023506,9]
[334169537,1722805932791,-566.72486536,0.00023506,9]
[334169538,1722805932803,-8524.14,0.00023506,9]
[334169539,1722805932816,-500.0,0.00023506,9]
[334169540,1722805932827,-500.0,0.00023506,9]
[334169541,1722805932839,-1025.18,0.00023506,9]
[334169542,1722805932851,-2009.05,0.00023506,9]
[334169543,1722805932863,-590.4,0.00023506,9]
[334169544,1722805932875,-536.8081434,0.00023506,9]
[334169545,1722805934430,-5931.296,0.00023506,9]
[334169546,1722805934444,-644.0558566,0.00023506,9]
[334169547,1722805934453,-500.0,0.00023506,9]
[334169548,1722805934463,-1553.57,0.00023506,9]
[334169549,1722805934473,-52.97414336,0.00023506,9]
[334169550,1722805934630,-285.24212946,0.00023013,9]
[334169551,1722806000498,500.0,0.00027,120]
[334169554,1722806007660,1000.0,0.00023013,60]
[334169555,1722806007746,1000.0,0.00023095,60]
[334169558,1722806008016,1000.0,0.00023178,60]
[334169560,1722806008302,1000.0,0.0002326,60]
[334169561,1722806008558,1000.0,0.00023342,60]
[334169562,1722806008807,1000.0,0.00023424,60]
[334169563,1722806009297,161.3,0.00023506,60]
[334169598,1722806599926,500.0,0.00027,120]
[334169613,1722806757640,-283.0,0.00010999,2]
[334169615,1722806763163,-300.0,0.00010999,2]
[334169618,1722806793093,-175.09,0.00010781,2]
[334169619,1722806802647,-875.47,0.00010781,2]
[334169621,1722806807087,-579.44,0.00010781,2]
[334169622,1722806807110,-1235.75835918,0.000109,2]
[334169623,1722806807133,-175.09,0.00010959,2]
[334169624,1722806807156,-875.47,0.00010959,2]
[334169625,1722806807178,-169.59963871,0.00010997,2]
[334169626,1722806807201,-34574.68430862,0.00010997,2]
[334169628,1722806813663,-166.97757394,0.00010781,2]
[334169629,1722806813685,-818.07212809,0.00010781,2]
[334169630,1722806813708,-2050.30829586,0.00010997,2]
[334169641,1722806891606,800.0,0.00026986,120]
[334169651,1722806950039,800.0,0.00026986,120]
[334169653,1722806953102,225.66,0.00018474,120]
[334169654,1722806955092,150.5,0.00018474,120]
[334169655,1722806955538,150.5,0.00018464,120]
[334169656,1722806956008,150.5,0.00018454,120]
[334169657,1722806956543,150.5,0.00023495,120]
[334169658,1722806956917,219.57,0.00023485,120]
[334169660,1722806992898,-250.0,0.00024,30]
[334169661,1722806993133,-625.0,0.00024657,30]
[334169662,1722806993157,-625.0,0.00024657,30]
[334169663,1722806993182,-625.0,0.00024657,30]
[334169664,1722806993206,-625.0,0.00024657,30]
[334169665,1722806993229,-625.0,0.00024657,30]
[334169666,1722806993253,-625.0,0.00024657,30]
[334169667,1722806993350,-156.54,0.000249,31]
[334169668,1722806993378,-156.54,0.000249,31]
[334169669,1722806993406,-156.54,0.000249,31]
[334169670,1722806993435,-156.54,0.000249,31]
[334169671,1722806993463,-156.54,0.000249,31]
[334169672,1722806993514,-1900.0,0.00025,30]
[334169673,1722806993538,-250.0,0.00025,30]
[334169674,1722806993563,-662.63,0.00025342,30]
[334169675,1722806993587,-1250.0,0.00025479,30]
[334169676,1722806993612,-662.63,0.00026027,30]
[334169677,1722806993636,-1250.0,0.00026301,30]
[334169678,1722806993662,-662.63,0.00026712,30]
[334169679,1722806993688,-665.16701254,0.00026901,30]
[334169680,1722806993713,-155.0,0.00027,40]
[334169681,1722806993740,-156.54,0.00027,31]
[334169682,1722806993768,-156.54,0.00027,31]
[334169683,1722806993794,-156.54,0.00027,31]
[334169684,1722806993820,-156.54,0.00027,31]
[334169685,1722806993844,-1250.0,0.00027123,30]
[334169686,1722806993870,-273.06304395,0.0002736,120]
[334169687,1722806993892,-294.90794443,0.0002739,30]
[334169688,1722806993919,-662.63,0.00027397,30]
[334169689,1722806993942,-150.0,0.00027397,30]
[334169690,1722806993966,-2000.0,0.00027397,30]
[334169691,1722806993990,-2000.0,0.00027397,30]
[334169692,1722806994013,-2000.0,0.00027397,30]
[334169693,1722806994037,-2000.0,0.00027397,30]
[334169694,1722806994062,-2000.0,0.00027397,30]
[334169695,1722806994086,-2000.0,0.00027397,30]
[334169696,1722806994109,-2000.0,0.00027397,30]
[334169697,1722806994133,-2000.0,0.00027397,30]
[334169698,1722806994157,-2000.0,0.00027397,30]
[334169699,1722806994181,-2000.0,0.00027397,30]
[334169700,1722806994205,-2000.0,0.00027397,30]
[334169701,1722806994228,-2000.0,0.00027397,30]
[334169702,1722806994251,-2000.0,0.00027397,30]
[334169703,1722806994274,-2000.0,0.00027397,30]
[334169704,1722806994297,-2000.0,0.00027397,30]
[334169705,1722806994320,-2000.0,0.00027397,30]
[334169706,1722806994343,-2000.0,0.00027397,30]
[334169707,1722806994365,-2000.0,0.00027397,30]
[334169708,1722806994388,-2000.0,0.00027397,30]
[334169709,1722806994411,-937.2469894,0.00027397,30]
[334169710,1722806994438,-200.0,0.00027397,60]
[334169711,1722806994467,-150.0,0.00027534,30]
[334169712,1722806994491,-150.0,0.00027671,30]
[334169713,1722806994513,-150.0,0.00027808,30]
[334169714,1722806994536,-1250.0,0.00027945,30]
[334169715,1722806994559,-150.0,0.00027945,30]
[334169716,1722806994582,-224.4050126,0.00028,120]
[334169717,1722806994608,-662.63,0.00028082,30]
[334169718,1722806994634,-217.27934242,0.00028082,30]
[334169719,1722806994659,-167.06142317,0.000285,120]
[334169720,1722806994682,-662.63,0.00028767,30]
[334169721,1722806994705,-1250.0,0.00028767,30]
[334169722,1722806994742,-1800.0,0.00029,30]
[334169723,1722806994771,-156.54,0.000292,31]
[334169724,1722806994798,-156.54,0.000292,31]
[334169725,1722806995263,-156.54,0.000292,31]
[334169726,1722806995292,-156.54,0.000292,31]
[334169727,1722806995319,-168.12,0.0002924,120]
[334169728,1722806995343,-662.63,0.00029452,30]
[334169729,1722806995367,-1250.0,0.00029589,30]
[334169730,1722806995397,-50000.0,0.0003,30]
[334169731,1722806995425,-383.51900091,0.0003,30]
[334169732,1722806995450,-187.56666667,0.0003,120]
[334169733,1722806995474,-151.0,0.0003,120]
[334169734,1722806995499,-1814.41,0.0003,90]
[334169735,1722806995523,-94138.84758521,0.0003,30]
[334169736,1722806995548,-2000.0,0.0003,120]
[334169737,1722806995573,-500.0,0.0003,120]
[334169738,1722806995597,-3600.0,0.0003,31]
[334169739,1722806995621,-7578.01897388,0.0003,30]
[334169740,1722806995646,-250.0,0.0003,30]
[334169741,1722806995669,-232.07546827,0.0003,30]
[334169742,1722806995694,-662.63,0.00030136,30]
[334169743,1722806995719,-1250.0,0.00030136,120]
[334169744,1722806995743,-200.0,0.00030137,60]
[334169745,1722806995768,-1250.0,0.0003041,30]
[334169746,1722806995792,-563.39178529,0.00030613,30]
[334169747,1722806995817,-250.0,0.000308,30]
[334169748,1722806995847,-662.63,0.00030821,30]
[334169749,1722806995871,-187.56666667,0.00030849,120]
[334169750,1722806995896,-1250.0,0.00030958,120]
[334169751,1722806995928,-50000.0,0.00031,31]
[334169752,1722806995954,-3600.0,0.00031,32]
[334169753,1722806995979,-410.11,0.00031,120]
[334169754,1722806996003,-1250.0,0.00031232,30]
[334169755,1722806996031,-156.54,0.000313,31]
[334169756,1722806996259,-156.54,0.000313,31]
[334169757,1722806996566,-156.54,0.000313,31]
[334169758,1722806996827,-156.54,0.000313,31]
[334169759,1722806996860,-877.03072439,0.000314,30]
[334169760,1722806996886,-150.0,0.00031401,120]
[334169761,1722806996912,-151.0,0.00031452,120]
[334169762,1722806996937,-662.63,0.00031506,30]
[334169763,1722806996962,-150.0,0.00031633,120]
[334169764,1722806996988,-187.56666667,0.00031699,120]
[334169765,1722806997013,-1250.0,0.0003178,120]
[334169766,1722806997039,-50000.0,0.00032,32]
[334169767,1722806997063,-1146.42977754,0.00032,120]
[334169768,1722806997089,-3600.0,0.00032,33]
[334169769,1722806997113,-2000.0,0.00032,120]
[334169770,1722806997137,-913.16405053,0.00032,120]
[334169771,1722806997160,-1250.0,0.00032054,30]
[334169772,1722806997186,-662.63,0.00032191,30]
[334169773,1722806997210,-187.56666667,0.00032548,120]
[334169774,1722806997235,-1250.0,0.00032602,120]
[334169775,1722806997283,-2825.0,0.000327,35]
[334169776,1722806997307,-366.69302037,0.0003271,90]
[334169777,1722806997332,-361.16904596,0.00032815,30]
[334169778,1722806997358,-1000.0,0.00032876,30]
[334169779,1722806997383,-1000.0,0.00032876,30]
[334169780,1722806997408,-1000.0,0.00032876,30]
[334169781,1722806997434,-1000.0,0.00032876,30]
[334169782,1722806997460,-1000.0,0.00032876,30]
[334169783,1722806997483,-1000.0,0.00032876,30]
[334169784,1722806997508,-1000.0,0.00032876,30]
[334169785,1722806997532,-665.36159648,0.00032876,30]
[334169786,1722806997556,-662.63,0.00032876,30]
[334169787,1722806997581,-1250.0,0.00032876,30]
[334169788,1722806997605,-1000.0,0.00032876,30]
[334169789,1722806997631,-2607.88,0.00032876,120]
[334169790,1722806997655,-2607.88,0.00032876,120]
[334169791,1722806997680,-2607.88,0.00032876,120]
[334169792,1722806997706,-2607.88,0.00032876,120]
[334169793,1722806997729,-2607.88,0.00032876,120]
[334169794,1722806997752,-2607.88,0.00032876,120]
[334169795,1722806997851,-2607.88,0.00032876,120]
[334169796,1722806997876,-2607.88,0.00032876,120]
[334169797,1722806997904,-2607.88,0.00032876,120]
[334169798,1722806997928,-2607.88,0.00032876,120]
[334169799,1722806997952,-2607.88,0.00032876,120]
[334169800,1722806997977,-2607.88,0.00032876,120]
[334169801,1722806998003,-2607.88,0.00032876,120]
[334169802,1722806998029,-2607.88,0.00032876,120]
[334169803,1722806998053,-2607.88,0.00032876,120]
[334169805,1722806998077,-2607.88,0.00032876,120]
[334169806,1722806998102,-2607.88,0.00032876,120]
[334169807,1722806998127,-2607.88,0.00032876,120]
[334169808,1722806998151,-2607.88,0.00032876,120]
[334169809,1722806998176,-2607.88,0.00032876,120]
[334169810,1722806998200,-2607.88,0.00032876,120]
[334169811,1722806998224,-2607.88,0.00032876,120]
[334169812,1722806998249,-2607.88,0.00032876,120]
[334169813,1722806998275,-2608.02977719,0.00032876,120]
[334169814,1722806998299,-2000.0,0.00032876,30]
[334169815,1722806998324,-2000.0,0.00032876,30]
[334169816,1722806998349,-2000.0,0.00032876,30]
[334169817,1722806998373,-2000.0,0.00032876,30]
[334169818,1722806998397,-2000.0,0.00032876,30]
[334169819,1722806998422,-2000.0,0.00032876,30]
[334169820,1722806998453,-1316.19163986,0.00032876,30]
[334169821,1722806998481,-3483.08,0.00032876,30]
[334169822,1722806998508,-3483.08,0.00032876,32]
[334169823,1722806998533,-3483.08,0.00032876,34]
[334169824,1722806998559,-3483.08,0.00032876,36]
[334169825,1722806998584,-3483.08,0.00032876,38]
[334169826,1722806998608,-3483.08,0.00032876,40]
[334169827,1722806998634,-3483.08,0.00032876,40]
[334169828,1722806998659,-3483.08,0.00032876,40]
[334169829,1722806998689,-200.0,0.00032877,60]
[334169830,1722806998714,-401.16129566,0.000329,30]
[334169831,1722806998738,-6904.43325253,0.000329,30]
[334169832,1722806998762,-150.0,0.00032904,120]
[334169833,1722806998788,-151.0,0.00032904,120]
[334169834,1722806998816,-50000.0,0.00033,33]
[334169835,1722806998841,-2258.46,0.00033,120]
[334169836,1722806998867,-160.74875085,0.00033,120]
[334169837,1722806998890,-3600.0,0.00033,34]
[334169838,1722806998923,-365.76821092,0.00033,90]
[334169839,1722806998950,-443.0,0.00033,120]
[334169840,1722806998974,-187.56666667,0.00033397,120]
[334169841,1722806999001,-1250.0,0.00033424,120]
[334169842,1722806999025,-1000.0,0.00033424,30]
[334169843,1722806999050,-150.0,0.00033431,120]
[334169844,1722806999079,-156.54,0.000335,31]
[334169845,1722806999105,-156.54,0.000335,31]
[334169846,1722806999131,-156.54,0.000335,31]
[334169847,1722806999157,-156.54,0.000335,31]
[334169848,1722806999185,-662.63,0.00033561,30]
[334169849,1722806999211,-150.0,0.0003368,120]
[334169850,1722806999235,-1250.0,0.00033698,30]